[Event "Early Titled Tuesday Blitz | February 8 2022"]
[White "Lauridsen, Jesper Morch"]
[Black "Rodchenkov, Sergey D."]
[WhiteFideId "1401890"]
[BlackFideId "4168712"]
[WhiteElo "2223"]
[BlackElo "2306"]
[Result "0-1"]
[Round "02"]
[TimeControl "180+1"]
[Date "2022.02.08"]
[WhiteClock "0:00:09"]
[BlackClock "0:00:47"]

1. e4 {[%clk 0:03:00]}  c5 {[%clk 0:03:00]} 2. Nf3 {[%clk 0:03:00]}  d6 {[%clk 0:03:00]} 3. d4 {[%clk 0:03:00]}  cxd4 {[%clk 0:03:01]} 4. Nxd4 {[%clk 0:03:00]}  Nf6 {[%clk 0:03:01]} 5. Nc3 {[%clk 0:03:00]}  a6 {[%clk 0:03:01]} 6. Bc4 {[%clk 0:02:59]}  e6 {[%clk 0:02:59]} 7. a3 {[%clk 0:02:59]}  Be7 {[%clk 0:02:48]} 8. Ba2 {[%clk 0:02:58]}  O-O {[%clk 0:02:48]} 9. O-O {[%clk 0:02:57]}  b5 {[%clk 0:02:48]} 10. Bg5 {[%clk 0:02:41]}  Qc7 {[%clk 0:02:47]} 11. Qd3 {[%clk 0:02:36]}  Bd7 {[%clk 0:02:33]} 12. Rad1 {[%clk 0:02:02]}  Rd8 {[%clk 0:02:25]} 13. Nf5 {[%clk 0:01:58]}  exf5 {[%clk 0:02:16]} 14. Bxf6 {[%clk 0:01:58]}  Bxf6 {[%clk 0:02:11]} 15. Nd5 {[%clk 0:01:58]}  Qc8 {[%clk 0:01:35]} 16. Nxf6+ {[%clk 0:01:51]}  gxf6 {[%clk 0:01:36]} 17. Qg3+ {[%clk 0:01:31]}  Kh8 {[%clk 0:01:35]} 18. Qh4 {[%clk 0:01:22]}  Rg8 {[%clk 0:01:27]} 19. Qxf6+ {[%clk 0:01:14]}  Rg7 {[%clk 0:01:27]} 20. Rd3 {[%clk 0:01:08]}  f4 {[%clk 0:01:24]} 21. Qxf4 {[%clk 0:00:20]}  Nc6 {[%clk 0:01:20]} 22. Qxd6 {[%clk 0:00:19]}  Be6 {[%clk 0:01:07]} 23. Bxe6 {[%clk 0:00:18]}  Qxe6 {[%clk 0:01:08]} 24. Qxe6 {[%clk 0:00:18]}  fxe6 {[%clk 0:01:09]} 25. f4 {[%clk 0:00:17]}  Rag8 {[%clk 0:01:07]} 26. g3 {[%clk 0:00:16]}  h5 {[%clk 0:01:06]} 27. Rd6 {[%clk 0:00:15]}  Nd8 {[%clk 0:01:01]} 28. Kf2 {[%clk 0:00:14]}  h4 {[%clk 0:00:55]} 29. gxh4 {[%clk 0:00:14]}  Rg2+ {[%clk 0:00:55]} 30. Ke1 {[%clk 0:00:14]}  Rxh2 {[%clk 0:00:54]} 31. f5 {[%clk 0:00:13]}  exf5 {[%clk 0:00:55]} 32. Rxf5 {[%clk 0:00:12]}  Rg1+ {[%clk 0:00:54]} 33. Rf1 {[%clk 0:00:12]}  Rxf1+ {[%clk 0:00:54]} 34. Kxf1 {[%clk 0:00:12]}  Nf7 {[%clk 0:00:55]} 35. Rxa6 {[%clk 0:00:12]}  Rxc2 {[%clk 0:00:54]} 36. Rb6 {[%clk 0:00:11]}  Rxb2 {[%clk 0:00:54]} 37. a4 {[%clk 0:00:10]}  b4 {[%clk 0:00:55]} 38. a5 {[%clk 0:00:09]}  Kg7 {[%clk 0:00:50]} 39. a6 {[%clk 0:00:09]}  Ra2 {[%clk 0:00:51]} 40. a7 {[%clk 0:00:09]}  Rxa7 {[%clk 0:00:51]} 41. Rxb4 {[%clk 0:00:09]}  Re7 {[%clk 0:00:51]} 42. e5 {[%clk 0:00:09]}  Rxe5 {[%clk 0:00:51]} 43. Kf2 {[%clk 0:00:10]}  Rc5 {[%clk 0:00:50]} 44. h5 {[%clk 0:00:10]}  Rc2+ {[%clk 0:00:49]} 45. Ke3 {[%clk 0:00:09]}  Rh2 {[%clk 0:00:50]} 46. h6+ {[%clk 0:00:09]}  Nxh6 {[%clk 0:00:47]} 47. Ra4 {[%clk 0:00:09]}  Nf5+ {[%clk 0:00:47]} 48. Kf4 {[%clk 0:00:09]}  Rh4+ {[%clk 0:00:47]} 0-1


[Site "https://www.chess.com"]

[Event "Early Titled Tuesday Blitz | February 8 2022"]
[White "Lazavik, Denis"]
[Black "Gabrielian, Artur"]
[WhiteFideId "13515110"]
[BlackFideId "4131002"]
[WhiteElo "2436"]
[BlackElo "2440"]
[Result "1-0"]
[Round "02"]
[TimeControl "180+1"]
[Date "2022.02.08"]
[WhiteClock "0:00:53"]
[BlackClock "0:00:04"]

1. d4 {[%clk 0:03:00]}  Nf6 {[%clk 0:02:59]} 2. c4 {[%clk 0:03:01]}  c5 {[%clk 0:02:59]} 3. d5 {[%clk 0:03:01]}  e6 {[%clk 0:02:59]} 4. Nc3 {[%clk 0:03:01]}  exd5 {[%clk 0:03:00]} 5. cxd5 {[%clk 0:03:02]}  d6 {[%clk 0:03:01]} 6. Nf3 {[%clk 0:03:00]}  g6 {[%clk 0:03:01]} 7. h3 {[%clk 0:03:01]}  Bg7 {[%clk 0:03:01]} 8. Bf4 {[%clk 0:03:01]}  O-O {[%clk 0:03:00]} 9. e3 {[%clk 0:03:00]}  Na6 {[%clk 0:03:01]} 10. Bxa6 {[%clk 0:02:55]}  bxa6 {[%clk 0:03:01]} 11. O-O {[%clk 0:02:55]}  Rb8 {[%clk 0:03:00]} 12. Qc2 {[%clk 0:02:53]}  Bf5 {[%clk 0:02:59]} 13. e4 {[%clk 0:02:33]}  Nxe4 {[%clk 0:02:56]} 14. Nxe4 {[%clk 0:02:32]}  Rxb2 {[%clk 0:02:56]} 15. Qd3 {[%clk 0:02:32]}  Re8 {[%clk 0:02:53]} 16. Rae1 {[%clk 0:02:09]}  Rb4 {[%clk 0:02:43]} 17. Nfd2 {[%clk 0:01:53]}  Rd4 {[%clk 0:02:07]} 18. Qf3 {[%clk 0:01:46]}  c4 {[%clk 0:01:53]} 19. Nxd6 {[%clk 0:01:25]}  Rxe1 {[%clk 0:01:37]} 20. Rxe1 {[%clk 0:01:25]}  c3 {[%clk 0:01:02]} 21. Re8+ {[%clk 0:01:08]}  Qxe8 {[%clk 0:01:00]} 22. Nxe8 {[%clk 0:01:09]}  Rd3 {[%clk 0:00:35]} 23. Qe2 {[%clk 0:01:02]}  Bd4 {[%clk 0:00:12]} 24. Ne4 {[%clk 0:00:54]}  c2 {[%clk 0:00:04]} 25. Qxd3 {[%clk 0:00:53]} 1-0


[Site "https://www.chess.com"]

[Event "Early Titled Tuesday Blitz | February 8 2022"]
[White "Le, Tuan Minh"]
[Black "Perez Gormaz, Matias"]
[WhiteFideId "12401153"]
[BlackFideId "3406342"]
[WhiteElo "2450"]
[BlackElo "2352"]
[Result "0-1"]
[Round "02"]
[TimeControl "180+1"]
[Date "2022.02.08"]
[WhiteClock "0:00:11"]
[BlackClock "0:00:06"]

1. d4 {[%clk 0:03:00]}  d5 {[%clk 0:03:00]} 2. Nf3 {[%clk 0:03:00]}  e6 {[%clk 0:03:00]} 3. Bf4 {[%clk 0:03:00]}  Nf6 {[%clk 0:02:59]} 4. e3 {[%clk 0:03:00]}  c5 {[%clk 0:03:00]} 5. c3 {[%clk 0:03:00]}  Nc6 {[%clk 0:03:01]} 6. Nbd2 {[%clk 0:03:01]}  cxd4 {[%clk 0:03:01]} 7. exd4 {[%clk 0:03:01]}  Nh5 {[%clk 0:03:01]} 8. Be5 {[%clk 0:03:01]}  f6 {[%clk 0:02:58]} 9. Bg3 {[%clk 0:03:01]}  g6 {[%clk 0:02:58]} 10. Be2 {[%clk 0:03:00]}  Bg7 {[%clk 0:02:58]} 11. O-O {[%clk 0:03:00]}  O-O {[%clk 0:02:58]} 12. Nb3 {[%clk 0:02:50]}  Nxg3 {[%clk 0:02:51]} 13. hxg3 {[%clk 0:02:51]}  e5 {[%clk 0:02:50]} 14. c4 {[%clk 0:02:45]}  e4 {[%clk 0:02:35]} 15. Nfd2 {[%clk 0:02:23]}  f5 {[%clk 0:02:35]} 16. cxd5 {[%clk 0:02:23]}  Ne7 {[%clk 0:02:35]} 17. Nc4 {[%clk 0:02:20]}  Nxd5 {[%clk 0:02:32]} 18. Ne5 {[%clk 0:02:20]}  Nb6 {[%clk 0:02:15]} 19. Rc1 {[%clk 0:02:15]}  Be6 {[%clk 0:02:11]} 20. Nc5 {[%clk 0:02:14]}  Bd5 {[%clk 0:02:11]} 21. a4 {[%clk 0:02:06]}  a5 {[%clk 0:01:45]} 22. Bb5 {[%clk 0:02:00]}  Rc8 {[%clk 0:01:32]} 23. Qd2 {[%clk 0:01:55]}  Ra8 {[%clk 0:00:52]} 24. Rfd1 {[%clk 0:01:32]}  Qd6 {[%clk 0:00:43]} 25. Qf4 {[%clk 0:01:18]}  Rfd8 {[%clk 0:00:43]} 26. g4 {[%clk 0:01:14]}  Rf8 {[%clk 0:00:18]} 27. gxf5 {[%clk 0:01:07]}  gxf5 {[%clk 0:00:17]} 28. Qe3 {[%clk 0:01:07]}  Kh8 {[%clk 0:00:11]} 29. Qh3 {[%clk 0:01:07]}  Rf6 {[%clk 0:00:10]} 30. Qg3 {[%clk 0:01:00]}  f4 {[%clk 0:00:09]} 31. Qg4 {[%clk 0:00:52]}  e3 {[%clk 0:00:10]} 32. Bd7 {[%clk 0:00:50]}  exf2+ {[%clk 0:00:09]} 33. Kxf2 {[%clk 0:00:49]}  Raf8 {[%clk 0:00:10]} 34. Rh1 {[%clk 0:00:47]}  Bg8 {[%clk 0:00:07]} 35. Rcd1 {[%clk 0:00:45]}  Nd5 {[%clk 0:00:07]} 36. Ne4 {[%clk 0:00:44]}  Qb4 {[%clk 0:00:05]} 37. Nxf6 {[%clk 0:00:43]}  Rxf6 {[%clk 0:00:06]} 38. Qe2 {[%clk 0:00:33]}  Ne3 {[%clk 0:00:05]} 39. Rd2 {[%clk 0:00:29]}  Rd6 {[%clk 0:00:05]} 40. Bg4 {[%clk 0:00:27]}  Bxe5 {[%clk 0:00:04]} 41. Rhd1 {[%clk 0:00:19]}  Rxd4 {[%clk 0:00:04]} 42. Rxd4 {[%clk 0:00:19]}  Bxd4 {[%clk 0:00:05]} 43. Rxd4 {[%clk 0:00:11]}  Qxd4 {[%clk 0:00:06]} 44. Ke1 {[%clk 0:00:12]}  Nxg4 {[%clk 0:00:06]} 45. Qxg4 {[%clk 0:00:13]}  Qe3+ {[%clk 0:00:06]} 46. Kf1 {[%clk 0:00:11]}  Bc4+ {[%clk 0:00:06]} 0-1


[Site "https://www.chess.com"]

[Event "Early Titled Tuesday Blitz | February 8 2022"]
[White "Lenderman, Aleksandr"]
[Black "Sargsyan, Anna M."]
[WhiteFideId "2021285"]
[BlackFideId "13308130"]
[WhiteElo "2651"]
[BlackElo "2271"]
[Result "1-0"]
[Round "02"]
[TimeControl "180+1"]
[Date "2022.02.08"]
[WhiteClock "0:01:03"]
[BlackClock "0:00:10"]

1. d4 {[%clk 0:03:00]}  d5 {[%clk 0:02:59]} 2. c4 {[%clk 0:02:58]}  c6 {[%clk 0:02:59]} 3. cxd5 {[%clk 0:02:56]}  cxd5 {[%clk 0:02:59]} 4. Bf4 {[%clk 0:02:55]}  Nc6 {[%clk 0:02:59]} 5. e3 {[%clk 0:02:55]}  Nf6 {[%clk 0:02:57]} 6. Bb5 {[%clk 0:02:54]}  Bd7 {[%clk 0:02:49]} 7. Nc3 {[%clk 0:02:53]}  e6 {[%clk 0:02:49]} 8. Nf3 {[%clk 0:02:53]}  Bb4 {[%clk 0:02:48]} 9. O-O {[%clk 0:02:53]}  O-O {[%clk 0:02:47]} 10. Bd3 {[%clk 0:02:50]}  Rc8 {[%clk 0:02:46]} 11. Rc1 {[%clk 0:02:48]}  a6 {[%clk 0:02:45]} 12. a3 {[%clk 0:02:41]}  Be7 {[%clk 0:02:43]} 13. Na4 {[%clk 0:02:32]}  Nh5 {[%clk 0:02:03]} 14. Nc5 {[%clk 0:02:21]}  Nxf4 {[%clk 0:02:03]} 15. exf4 {[%clk 0:02:21]}  Nxd4 {[%clk 0:01:53]} 16. Bxh7+ {[%clk 0:02:14]}  Kxh7 {[%clk 0:01:53]} 17. Qxd4 {[%clk 0:02:14]}  Bb5 {[%clk 0:01:53]} 18. Rfe1 {[%clk 0:02:10]}  b6 {[%clk 0:01:11]} 19. Na4 {[%clk 0:02:07]}  Rc4 {[%clk 0:00:46]} 20. Rxc4 {[%clk 0:02:01]}  dxc4 {[%clk 0:00:47]} 21. Qe4+ {[%clk 0:02:01]}  Kg8 {[%clk 0:00:46]} 22. Nc3 {[%clk 0:01:56]}  Bc5 {[%clk 0:00:35]} 23. Ng5 {[%clk 0:01:45]}  Qd3 {[%clk 0:00:29]} 24. a4 {[%clk 0:01:29]}  Be8 {[%clk 0:00:21]} 25. Rd1 {[%clk 0:01:26]}  Qxe4 {[%clk 0:00:20]} 26. Ngxe4 {[%clk 0:01:27]}  Bb4 {[%clk 0:00:20]} 27. Rd4 {[%clk 0:01:23]}  f5 {[%clk 0:00:20]} 28. Ng5 {[%clk 0:01:21]}  Bxc3 {[%clk 0:00:20]} 29. bxc3 {[%clk 0:01:21]}  Bxa4 {[%clk 0:00:21]} 30. Rxc4 {[%clk 0:01:20]}  Bb5 {[%clk 0:00:14]} 31. Rc7 {[%clk 0:01:18]}  Re8 {[%clk 0:00:14]} 32. c4 {[%clk 0:01:18]}  Ba4 {[%clk 0:00:14]} 33. Ra7 {[%clk 0:01:17]}  a5 {[%clk 0:00:13]} 34. Rb7 {[%clk 0:01:17]}  e5 {[%clk 0:00:13]} 35. fxe5 {[%clk 0:01:14]}  g6 {[%clk 0:00:14]} 36. f4 {[%clk 0:01:14]}  Bb3 {[%clk 0:00:12]} 37. Rxb6 {[%clk 0:01:13]}  a4 {[%clk 0:00:13]} 38. Rxg6+ {[%clk 0:01:13]}  Kf8 {[%clk 0:00:12]} 39. Ra6 {[%clk 0:01:11]}  Rc8 {[%clk 0:00:10]} 40. Ra7 {[%clk 0:01:09]}  Rxc4 {[%clk 0:00:10]} 41. e6 {[%clk 0:01:04]}  Rxf4 {[%clk 0:00:10]} 42. Nh7+ {[%clk 0:01:03]} 1-0


[Site "https://www.chess.com"]

[Event "Early Titled Tuesday Blitz | February 8 2022"]
[White "Ljukin, Sergei"]
[Black "De Abreu, Roberto N"]
[WhiteFideId "14102200"]
[BlackFideId "14307472"]
[WhiteElo "2312"]
[BlackElo "1996"]
[Result "0-1"]
[Round "02"]
[TimeControl "180+1"]
[Date "2022.02.08"]
[WhiteClock "0:00:10"]
[BlackClock "0:00:14"]

1. e4 {[%clk 0:02:55]}  e5 {[%clk 0:02:58]} 2. Nf3 {[%clk 0:02:54]}  Nc6 {[%clk 0:02:58]} 3. Bb5 {[%clk 0:02:53]}  a6 {[%clk 0:02:58]} 4. Ba4 {[%clk 0:02:53]}  Nf6 {[%clk 0:02:57]} 5. Qe2 {[%clk 0:02:52]}  Be7 {[%clk 0:02:54]} 6. c3 {[%clk 0:02:52]}  d6 {[%clk 0:02:51]} 7. O-O {[%clk 0:02:51]}  O-O {[%clk 0:02:50]} 8. d4 {[%clk 0:02:51]}  exd4 {[%clk 0:02:45]} 9. cxd4 {[%clk 0:02:50]}  Bg4 {[%clk 0:02:46]} 10. Rd1 {[%clk 0:02:46]}  Re8 {[%clk 0:02:10]} 11. Nc3 {[%clk 0:02:43]}  b5 {[%clk 0:02:06]} 12. Bb3 {[%clk 0:02:43]}  h6 {[%clk 0:02:01]} 13. h3 {[%clk 0:02:33]}  Bh5 {[%clk 0:01:52]} 14. g4 {[%clk 0:02:33]}  Bg6 {[%clk 0:01:48]} 15. e5 {[%clk 0:02:33]}  Nd7 {[%clk 0:01:41]} 16. e6 {[%clk 0:02:21]}  fxe6 {[%clk 0:01:42]} 17. Bxe6+ {[%clk 0:01:52]}  Kh7 {[%clk 0:01:40]} 18. Bd5 {[%clk 0:01:44]}  Na5 {[%clk 0:01:18]} 19. Bxa8 {[%clk 0:01:35]}  Qxa8 {[%clk 0:01:15]} 20. d5 {[%clk 0:01:32]}  Bf6 {[%clk 0:01:10]} 21. Qf1 {[%clk 0:01:32]}  Nc4 {[%clk 0:01:06]} 22. g5 {[%clk 0:01:30]}  Bxc3 {[%clk 0:00:55]} 23. bxc3 {[%clk 0:01:28]}  Bh5 {[%clk 0:00:55]} 24. Rd3 {[%clk 0:01:20]}  Nde5 {[%clk 0:00:46]} 25. Nxe5 {[%clk 0:01:11]}  Nxe5 {[%clk 0:00:47]} 26. f4 {[%clk 0:01:02]}  Nxd3 {[%clk 0:00:42]} 27. Qxd3+ {[%clk 0:01:02]}  Bg6 {[%clk 0:00:40]} 28. f5 {[%clk 0:01:01]}  Bh5 {[%clk 0:00:36]} 29. Be3 {[%clk 0:00:49]}  Re5 {[%clk 0:00:27]} 30. g6+ {[%clk 0:00:28]}  Kh8 {[%clk 0:00:25]} 31. Bd4 {[%clk 0:00:25]}  Qxd5 {[%clk 0:00:24]} 32. Qf1 {[%clk 0:00:14]}  Re2 {[%clk 0:00:22]} 33. Re1 {[%clk 0:00:14]}  Qe4 {[%clk 0:00:17]} 34. Rxe2 {[%clk 0:00:13]}  Bxe2 {[%clk 0:00:18]} 35. Qf2 {[%clk 0:00:12]}  Kg8 {[%clk 0:00:16]} 36. Qh4 {[%clk 0:00:10]}  Qxh4 {[%clk 0:00:14]} 0-1


[Site "https://www.chess.com"]

[Event "Early Titled Tuesday Blitz | February 8 2022"]
[White "Loay, Sameer"]
[Black "Shton, Roman"]
[WhiteFideId "8104239"]
[BlackFideId "14137461"]
[WhiteElo "2040"]
[BlackElo "2038"]
[Result "1-0"]
[Round "02"]
[TimeControl "180+1"]
[Date "2022.02.08"]
[WhiteClock "0:01:13"]
[BlackClock "0:00:35"]

1. Nf3 {[%clk 0:03:00]}  d5 {[%clk 0:02:58]} 2. g3 {[%clk 0:03:01]}  Nf6 {[%clk 0:02:57]} 3. Bg2 {[%clk 0:03:01]}  Bg4 {[%clk 0:02:57]} 4. O-O {[%clk 0:03:01]}  Nbd7 {[%clk 0:02:57]} 5. d3 {[%clk 0:03:01]}  c6 {[%clk 0:02:57]} 6. Nbd2 {[%clk 0:03:02]}  e5 {[%clk 0:02:55]} 7. e4 {[%clk 0:03:02]}  dxe4 {[%clk 0:02:56]} 8. dxe4 {[%clk 0:03:02]}  Bc5 {[%clk 0:02:56]} 9. h3 {[%clk 0:03:02]}  Bh5 {[%clk 0:02:56]} 10. Qe2 {[%clk 0:03:02]}  O-O {[%clk 0:02:56]} 11. g4 {[%clk 0:02:58]}  Bg6 {[%clk 0:02:55]} 12. Nh4 {[%clk 0:02:59]}  b5 {[%clk 0:02:42]} 13. Nf5 {[%clk 0:02:57]}  Qb6 {[%clk 0:02:40]} 14. c3 {[%clk 0:02:50]}  a5 {[%clk 0:02:38]} 15. Nb3 {[%clk 0:02:38]}  Rfe8 {[%clk 0:02:22]} 16. Nxc5 {[%clk 0:02:27]}  Qxc5 {[%clk 0:02:23]} 17. Be3 {[%clk 0:02:25]}  Qf8 {[%clk 0:02:23]} 18. Rfd1 {[%clk 0:02:25]}  Bxf5 {[%clk 0:02:14]} 19. exf5 {[%clk 0:02:24]}  Rac8 {[%clk 0:02:14]} 20. g5 {[%clk 0:02:22]}  Nd5 {[%clk 0:02:13]} 21. Bxd5 {[%clk 0:02:22]}  cxd5 {[%clk 0:02:14]} 22. Rxd5 {[%clk 0:02:23]}  Nc5 {[%clk 0:01:55]} 23. Qxb5 {[%clk 0:02:16]}  Ne4 {[%clk 0:01:50]} 24. Rxe5 {[%clk 0:02:05]}  Rxe5 {[%clk 0:01:45]} 25. Qxe5 {[%clk 0:02:05]}  Re8 {[%clk 0:01:46]} 26. Qf4 {[%clk 0:02:05]}  f6 {[%clk 0:01:40]} 27. g6 {[%clk 0:01:59]}  Ng5 {[%clk 0:01:40]} 28. Qc4+ {[%clk 0:01:51]}  Kh8 {[%clk 0:01:40]} 29. h4 {[%clk 0:01:49]}  Nf3+ {[%clk 0:01:38]} 30. Kg2 {[%clk 0:01:48]}  Ne5 {[%clk 0:01:38]} 31. Qc5 {[%clk 0:01:43]}  Re7 {[%clk 0:01:32]} 32. Rd1 {[%clk 0:01:38]}  hxg6 {[%clk 0:01:09]} 33. fxg6 {[%clk 0:01:38]}  Qe8 {[%clk 0:01:05]} 34. h5 {[%clk 0:01:35]}  Ng4 {[%clk 0:00:50]} 35. Qd4 {[%clk 0:01:22]}  Qa8+ {[%clk 0:00:35]} 36. Qd5 {[%clk 0:01:14]}  Qxd5+ {[%clk 0:00:34]} 37. Rxd5 {[%clk 0:01:14]}  Rxe3 {[%clk 0:00:35]} 38. Rd8+ {[%clk 0:01:13]} 1-0


[Site "https://www.chess.com"]

[Event "Early Titled Tuesday Blitz | February 8 2022"]
[White "Lopez Del Alamo, Antonio"]
[Black "Goltseva, Ekaterina"]
[WhiteFideId "2227339"]
[BlackFideId "24173770"]
[WhiteElo "2082"]
[BlackElo "2140"]
[Result "1-0"]
[Round "02"]
[TimeControl "180+1"]
[Date "2022.02.08"]
[WhiteClock "0:00:26"]
[BlackClock "0:00:10"]

1. e4 {[%clk 0:02:17]}  e5 {[%clk 0:02:54]} 2. Bc4 {[%clk 0:02:15]}  c6 {[%clk 0:02:54]} 3. Nf3 {[%clk 0:02:04]}  d6 {[%clk 0:02:51]} 4. O-O {[%clk 0:01:46]}  Be7 {[%clk 0:02:45]} 5. d4 {[%clk 0:01:44]}  Nd7 {[%clk 0:02:37]} 6. Re1 {[%clk 0:01:42]}  Nb6 {[%clk 0:02:27]} 7. Bb3 {[%clk 0:01:41]}  Qc7 {[%clk 0:02:08]} 8. a4 {[%clk 0:01:27]}  a5 {[%clk 0:02:07]} 9. dxe5 {[%clk 0:01:24]}  dxe5 {[%clk 0:02:05]} 10. Be3 {[%clk 0:01:25]}  Bf6 {[%clk 0:01:49]} 11. Nbd2 {[%clk 0:01:24]}  Ne7 {[%clk 0:01:50]} 12. Bxb6 {[%clk 0:01:24]}  Qxb6 {[%clk 0:01:48]} 13. Nc4 {[%clk 0:01:25]}  Qc7 {[%clk 0:01:40]} 14. Nd6+ {[%clk 0:01:24]}  Kf8 {[%clk 0:01:41]} 15. Nxf7 {[%clk 0:01:24]}  Rg8 {[%clk 0:01:42]} 16. N7g5 {[%clk 0:01:21]}  Rh8 {[%clk 0:01:24]} 17. Qe2 {[%clk 0:01:13]}  h6 {[%clk 0:01:22]} 18. Qc4 {[%clk 0:01:13]}  Ng6 {[%clk 0:01:15]} 19. Nf7 {[%clk 0:01:07]}  Rh7 {[%clk 0:01:13]} 20. Rad1 {[%clk 0:01:04]}  Nf4 {[%clk 0:01:07]} 21. N7xe5 {[%clk 0:01:02]}  Be6 {[%clk 0:01:07]} 22. Ng6+ {[%clk 0:01:00]}  Kf7 {[%clk 0:01:00]} 23. Nxf4 {[%clk 0:00:44]}  Bxc4 {[%clk 0:00:59]} 24. Bxc4+ {[%clk 0:00:45]}  Ke8 {[%clk 0:00:48]} 25. e5 {[%clk 0:00:43]}  Bg5 {[%clk 0:00:41]} 26. Ne6 {[%clk 0:00:42]}  Qe7 {[%clk 0:00:38]} 27. Nfd4 {[%clk 0:00:40]}  g6 {[%clk 0:00:31]} 28. f4 {[%clk 0:00:40]}  c5 {[%clk 0:00:21]} 29. Nb5 {[%clk 0:00:36]}  Bxf4 {[%clk 0:00:15]} 30. Nxf4 {[%clk 0:00:36]}  Qg5 {[%clk 0:00:16]} 31. Ne6 {[%clk 0:00:33]}  Qg4 {[%clk 0:00:15]} 32. Nd6+ {[%clk 0:00:32]}  Ke7 {[%clk 0:00:13]} 33. Nc7 {[%clk 0:00:30]}  Rd8 {[%clk 0:00:07]} 34. Nd5+ {[%clk 0:00:30]}  Kf8 {[%clk 0:00:07]} 35. Nf6 {[%clk 0:00:31]}  Qh4 {[%clk 0:00:04]} 36. Nxh7+ {[%clk 0:00:31]}  Kg7 {[%clk 0:00:04]} 37. Nf6 {[%clk 0:00:31]}  g5 {[%clk 0:00:05]} 38. Nf5+ {[%clk 0:00:29]}  Kg6 {[%clk 0:00:04]} 39. Nxh4+ {[%clk 0:00:30]}  gxh4 {[%clk 0:00:05]} 40. Rxd8 {[%clk 0:00:29]}  Kf5 {[%clk 0:00:06]} 41. e6 {[%clk 0:00:28]}  h3 {[%clk 0:00:06]} 42. e7 {[%clk 0:00:28]}  Kxf6 {[%clk 0:00:07]} 43. e8=Q {[%clk 0:00:27]}  hxg2 {[%clk 0:00:08]} 44. Rd6+ {[%clk 0:00:27]}  Kf5 {[%clk 0:00:08]} 45. Qe5+ {[%clk 0:00:27]}  Kg4 {[%clk 0:00:09]} 46. Rg6+ {[%clk 0:00:27]}  Kh3 {[%clk 0:00:10]} 47. Qg3# {[%clk 0:00:26]} 1-0


[Site "https://www.chess.com"]

[Event "Early Titled Tuesday Blitz | February 8 2022"]
[White "Lopez Mulet, Inigo"]
[Black "Urazayev, Arystanbek"]
[WhiteFideId "22235620"]
[BlackFideId "13709810"]
[WhiteElo "2315"]
[BlackElo "2321"]
[Result "0-1"]
[Round "02"]
[TimeControl "180+1"]
[Date "2022.02.08"]
[WhiteClock "0:00:06"]
[BlackClock "0:00:37"]

1. c4 {[%clk 0:02:59]}  e6 {[%clk 0:02:59]} 2. g3 {[%clk 0:02:56]}  d5 {[%clk 0:02:59]} 3. d4 {[%clk 0:02:57]}  Nf6 {[%clk 0:02:57]} 4. Nf3 {[%clk 0:02:56]}  dxc4 {[%clk 0:02:58]} 5. Bg2 {[%clk 0:02:56]}  Bd7 {[%clk 0:02:58]} 6. Ne5 {[%clk 0:02:52]}  Bc6 {[%clk 0:02:59]} 7. Nxc6 {[%clk 0:02:52]}  Nxc6 {[%clk 0:03:00]} 8. e3 {[%clk 0:02:53]}  Qd7 {[%clk 0:03:00]} 9. O-O {[%clk 0:02:51]}  O-O-O {[%clk 0:03:00]} 10. Qa4 {[%clk 0:02:47]}  Nd5 {[%clk 0:02:59]} 11. Qxc4 {[%clk 0:02:45]}  h5 {[%clk 0:02:58]} 12. Nc3 {[%clk 0:02:46]}  h4 {[%clk 0:02:59]} 13. Bd2 {[%clk 0:02:39]}  hxg3 {[%clk 0:02:59]} 14. hxg3 {[%clk 0:02:39]}  f5 {[%clk 0:02:59]} 15. a3 {[%clk 0:02:14]}  g5 {[%clk 0:02:59]} 16. b4 {[%clk 0:02:12]}  f4 {[%clk 0:02:57]} 17. Nxd5 {[%clk 0:02:08]}  exd5 {[%clk 0:02:57]} 18. Qd3 {[%clk 0:02:08]}  Bd6 {[%clk 0:02:27]} 19. exf4 {[%clk 0:01:56]}  gxf4 {[%clk 0:02:26]} 20. Rae1 {[%clk 0:01:49]}  fxg3 {[%clk 0:02:26]} 21. fxg3 {[%clk 0:01:48]}  Qg7 {[%clk 0:02:26]} 22. Bf4 {[%clk 0:01:37]}  Nxd4 {[%clk 0:01:58]} 23. Bxd6 {[%clk 0:01:08]}  Rxd6 {[%clk 0:01:58]} 24. Rf4 {[%clk 0:01:09]}  Nc6 {[%clk 0:01:58]} 25. b5 {[%clk 0:01:02]}  Nd8 {[%clk 0:01:40]} 26. Qf5+ {[%clk 0:01:00]}  Kb8 {[%clk 0:01:25]} 27. Rg4 {[%clk 0:00:55]}  Qc3 {[%clk 0:01:22]} 28. Qf2 {[%clk 0:00:16]}  Qxa3 {[%clk 0:01:05]} 29. Rg7 {[%clk 0:00:13]}  Qc3 {[%clk 0:01:03]} 30. Rge7 {[%clk 0:00:13]}  Rf6 {[%clk 0:00:50]} 31. Qe2 {[%clk 0:00:13]}  Qxg3 {[%clk 0:00:39]} 32. Rh7 {[%clk 0:00:10]}  Rxh7 {[%clk 0:00:38]} 33. Qe8 {[%clk 0:00:06]}  Qh2# {[%clk 0:00:37]} 0-1


[Site "https://www.chess.com"]